bitfinex/quotes_ETHUSD_20251012
["timestamp","ask_amount","ask_price","bid_price","bid_amount"]
[1760298468191,5.06862558,4140.4,4140.3,0.002]
[1760298477554,10.27563562,4140.4,4140.3,0.002]
[1760298477758,14.39762008,4140.4,4139.6,0.002]
[1760298477963,14.39762008,4140.4,4139.2,0.002]
[1760298477964,2.41586741,4139.3,4139.2,0.002]
[1760298478162,0.0756,4139.7,4139.2,0.002]
[1760298478464,5.06906741,4139.3,4139.2,0.002]
[1760298480962,2.5536,4139.3,4139.2,0.002]
[1760298481269,5.06906741,4139.3,4139.2,0.002]
[1760298481437,2.5536,4139.3,4139.2,0.002]
[1760298481763,5.06906741,4139.3,4139.2,0.002]
[1760298482264,0.6336,4139.1,4138.3,0.002]
[1760298482444,3.04970089,4138.9,4138.3,0.002]
[1760298482647,4.96970089,4138.9,4138.3,0.002]
[1760298482965,5.06930089,4138.9,4138.3,0.002]
[1760298485854,2.5536,4138.9,4138.3,0.002]
[1760298486063,1.92,4138.9,4138.8,2.89255927]
[1760298486279,2.5536,4138.8,4138.3,0.002]
[1760298486488,3.0497841,4138.8,4138.3,0.002]
[1760298486794,0.6336,4138.6,4138.3,0.002]
[1760298486999,4.9699928,4138.4,4138.3,0.002]
[1760298487491,5.0693928,4138.4,4138.3,0.002]
[1760298487791,3.05022638,4138.0,4137.9,0.002]
[1760298487977,2.5536,4137.0,4136.1,2.41771028]
[1760298488196,2.5536,4137.0,4135.9,0.7062]
[1760298488197,2.6744,4137.0,4136.3,0.1208]
[1760298488379,3.1716268,4137.0,4136.3,0.1208]
[1760298488555,2.5536,4136.8,4136.3,0.1208]
[1760298488760,3.05093396,4136.8,4136.0,2.41978208]
[1760298489084,0.6336,4136.6,4136.0,2.54058208]
[1760298489257,3.05110126,4136.6,4136.0,0.1228]
[1760298489590,0.6336,4136.2,4136.0,0.002]
[1760298489789,0.6336,4136.0,4135.7,0.1208]
[1760298490086,0.6336,4135.9,4135.5,0.002]
[1760298490675,2.6526,4135.8,4135.5,0.002]
[1760298490979,0.7326,4135.8,4135.5,0.002]
[1760298491286,2.5536,4135.6,4135.5,0.002]
[1760298491493,2.41819703,4135.4,4135.1,0.002]
[1760298491681,4.97186272,4135.2,4135.1,0.002]
[1760298491861,0.099,4135.3,4135.1,0.002]
[1760298492078,0.6336,4135.4,4135.1,0.002]
[1760298492275,0.6336,4135.6,4135.1,0.002]
[1760298492684,2.5536,4135.4,4135.1,0.002]
[1760298492888,3.05174945,4135.4,4135.1,0.002]
[1760298493101,2.5536,4135.2,4135.1,0.002]
[1760298493408,2.51721691,4135.3,4134.3,0.002]
[1760298493409,2.41866656,4134.6,4134.3,0.002]
[1760298493598,2.5536,4134.5,4134.3,0.002]
[1760298494106,0.6336,4134.5,4134.3,0.002]
[1760298494312,0.6336,4134.6,4134.3,0.002]
[1760298494609,0.6336,4134.8,4134.3,2.42078575]
[1760298494804,0.6336,4134.9,4134.4,2.41869079]
[1760298494978,0.6336,4134.9,4134.3,0.002]
[1760298495179,0.6336,4135.5,4134.4,2.41873065]
[1760298495378,0.099,4135.6,4134.4,2.41873065]
[1760298495809,2.5536,4135.5,4134.6,2.41859998]
[1760298495975,0.099,4135.4,4134.5,2.41865836]
[1760298496182,0.6336,4135.3,4134.4,2.41873065]
[1760298496515,2.5536,4135.3,4134.3,0.002]
[1760298496698,0.6336,4135.7,4134.9,2.41838247]
[1760298496879,0.6336,4135.7,4134.4,2.41873065]
[1760298497085,0.6336,4135.7,4134.9,2.41839059]
[1760298497988,0.6336,4135.5,4134.9,2.41839059]
[1760298498207,0.6336,4135.5,4134.7,2.41855244]
[1760298498208,0.6336,4135.5,4135.0,2.41837214]
[1760298498512,0.6336,4135.5,4134.9,2.41842511]
[1760298498513,0.6336,4135.3,4134.9,2.41842511]
[1760298499412,0.6336,4135.1,4134.6,0.002]
[1760298499606,0.6336,4135.1,4134.7,2.41855432]
[1760298499800,0.6336,4135.1,4134.6,0.002]
[1760298499991,0.6336,4135.1,4135.0,2.41837968]
[1760298500186,0.6336,4135.2,4134.6,0.1228]
[1760298500393,0.6336,4135.2,4135.0,2.41836713]
[1760298500801,0.6336,4135.8,4135.0,0.4648]
[1760298500989,0.6336,4135.5,4135.3,2.41816071]
[1760298501390,0.6336,4135.5,4135.4,2.41814576]
[1760298503320,0.099,4136.6,4135.6,2.41800892]
[1760298503488,0.6336,4136.4,4135.8,2.41786966]
[1760298503688,0.099,4136.6,4135.9,2.41784485]
[1760298504113,0.6336,4136.5,4135.8,2.41789552]
[1760298504315,0.6336,4136.3,4135.7,2.41795553]
[1760298504490,0.6336,4136.3,4135.8,2.41789254]
[1760298504690,0.7326,4136.3,4135.8,2.41789254]
[1760298504893,0.7326,4136.3,4135.5,2.41806719]
[1760298505086,0.7326,4136.3,4135.4,0.4648]
[1760298505309,0.7326,4136.3,4135.5,2.4180696]
[1760298505516,2.41790803,4135.9,4134.7,2.41855515]
[1760298505829,2.6526,4135.8,4135.1,2.41831795]
[1760298506000,0.6336,4135.6,4134.9,2.41842978]
[1760298506202,0.6336,4135.4,4135.0,2.41837159]
[1760298506611,0.6336,4136.0,4134.7,2.41855515]
[1760298506822,0.6336,4135.7,4135.4,2.41813903]
[1760298507118,0.6336,4135.7,4135.3,2.41819186]
[1760298507323,0.6336,4136.0,4135.3,2.41819186]
[1760298507532,0.6336,4136.0,4135.3,2.41818466]
[1760298507533,0.099,4135.7,4135.3,2.41818466]
[1760298507712,0.6336,4135.6,4135.1,2.41831197]
[1760298508112,0.6336,4135.6,4135.3,2.41815787]
[1760298508424,0.6336,4135.6,4135.1,2.41831197]
[1760298508425,0.6336,4135.6,4135.4,2.41813814]
[1760298508721,2.41757308,4136.4,4135.4,2.41813814]
[1760298508722,0.099,4136.7,4136.1,2.41769531]
[1760298509113,0.6336,4136.6,4136.2,2.4176658]
[1760298509310,0.7326,4136.6,4136.5,2.41750271]
[1760298509517,0.281,4137.3,4135.6,2.41802882]
[1760298509824,0.281,4137.3,4136.8,2.41727537]
[1760298510034,0.6336,4137.2,4136.8,2.41727537]
[1760298510323,1.65145183,4138.1,4137.3,2.41699981]
[1760298510620,2.51649598,4137.9,4136.7,2.41735956]
[1760298510826,0.6336,4137.8,4137.2,2.41703677]
[1760298511008,0.0998,4137.9,4137.2,2.41703677]
[1760298511403,1.92,4137.8,4137.2,2.41703677]
[1760298511716,0.6336,4137.7,4137.2,2.41703677]
[1760298511912,2.0198,4137.9,4137.4,2.41697427]
[1760298512218,0.0998,4137.8,4137.3,2.41703471]
[1760298512721,4.97028948,4137.9,4137.1,2.41715211]
[1760298512926,0.0998,4137.7,4137.2,2.41704224]
[1760298513233,0.2206,4137.7,4137.0,0.1208]
[1760298513435,2.41713502,4137.2,4136.3,2.41756295]
[1760298513738,0.7334,4137.1,4136.6,2.41743666]
[1760298513907,0.6336,4137.3,4136.2,0.4648]
[1760298514105,0.6336,4137.3,4136.8,2.41731906]
[1760298514525,0.6336,4137.4,4136.8,2.41731906]
[1760298514847,0.6336,4137.2,4136.7,2.41737692]
[1760298515232,0.6336,4137.4,4136.7,2.41737692]
[1760298515540,0.6336,4137.2,4136.7,2.41737692]
[1760298515768,0.7334,4137.2,4136.8,2.41732356]
[1760298516443,0.7334,4137.2,4136.2,0.4648]
[1760298516444,0.7334,4137.2,4136.9,2.41726529]
[1760298516652,0.6336,4137.4,4136.9,2.41726529]
[1760298517023,0.6336,4137.2,4136.7,2.41738527]
[1760298517236,0.6336,4137.2,4136.6,2.41742519]
[1760298517424,0.6336,4137.2,4136.8,2.41732225]
[1760298517833,0.6336,4137.4,4136.8,2.41732225]
[1760298518030,0.7334,4137.4,4136.8,2.41732225]
[1760298519060,0.6336,4137.5,4136.9,2.41725861]
[1760298519230,0.6336,4137.5,4137.0,2.41719856]
[1760298519435,1.921,4137.9,4136.8,0.4648]
[1760298519659,0.001,4137.9,4136.8,0.75302443]
[1760298519858,0.001,4137.9,4136.2,2.41763011]
[1760298519859,0.001,4137.9,4136.9,0.4648]
[1760298520052,0.001,4137.9,4137.7,2.41676087]
[1760298520435,0.001,4137.9,4137.8,2.41674319]
[1760298521171,0.001,4137.9,4137.8,2.88154319]
[1760298522978,0.001,4137.9,4137.8,2.41674319]
[1760298523152,0.001,4137.9,4137.7,2.41675257]
[1760298523351,0.001,4137.9,4137.8,2.41674319]
[1760298524680,0.001,4137.9,4137.8,2.91217277]
[1760298524975,0.001,4137.9,4137.8,3.03297277]
[1760298525274,0.001,4137.9,4137.8,3.49777277]
[1760298525460,0.001,4138.4,4138.3,2.41645119]
[1760298525866,0.001,4138.4,4138.3,3.00205119]
[1760298526175,0.001,4138.4,4138.3,3.58212908]
[1760298527476,0.6346,4138.4,4138.3,3.58212908]
[1760298527868,1.01332644,4138.4,4138.3,3.58212908]
[1760298528570,0.6346,4138.4,4138.3,3.58212908]
[1760298530377,0.6346,4138.4,4138.3,0.70087789]
[1760298530589,0.6336,4138.3,4137.2,0.1911]
[1760298530786,0.001,4138.4,4137.9,2.53745592]
[1760298530960,0.001,4138.4,4138.1,2.41652295]
[1760298531160,0.001,4138.4,4138.0,2.41660929]
[1760298531587,0.001,4138.4,4137.9,0.1208]
[1760298531588,0.001,4138.4,4138.2,2.4164919]
[1760298531792,0.001,4138.4,4138.1,2.41656799]
[1760298531955,0.001,4138.4,4138.3,2.53725119]
[1760298531956,0.6346,4138.4,4138.3,2.53725119]
[1760298532363,0.6346,4138.4,4138.3,2.99115119]
[1760298532590,0.001,4138.4,4138.3,2.99115119]
[1760298533268,0.001,4138.4,4138.3,2.44115119]
[1760298533469,0.001,4138.4,4138.3,1.98725119]
[1760298533674,0.6346,4138.4,4138.3,1.98725119]
[1760298535595,0.6346,4138.4,4138.3,2.44115119]
[1760298538376,0.6346,4138.4,4138.3,2.94603311]
[1760298541712,0.001,4138.8,4138.7,2.41621765]
[1760298541899,0.001,4138.8,4138.7,2.53701765]
[1760298542108,0.001,4138.8,4138.7,2.99091765]
[1760298543306,1e-08,4139.3,4139.2,2.41592578]
[1760298543501,1e-08,4139.3,4139.2,2.89911867]
[1760298543706,0.001,4139.8,4139.7,2.41563398]
[1760298543901,0.001,4139.8,4139.7,2.53563398]
[1760298544100,0.001,4139.8,4139.7,2.98953398]
[1760298544630,0.001,4139.8,4139.7,3.10953398]
[1760298544938,0.001,4139.8,4139.7,3.66205849]
[1760298549439,0.6346,4139.8,4139.7,3.54205849]
[1760298549735,0.001,4139.8,4139.7,3.54205849]
[1760298549936,0.001,4139.8,4139.7,3.42205849]
[1760298550820,0.6346,4139.8,4139.7,3.42205849]
[1760298551016,0.001,4139.8,4139.7,2.86953398]
[1760298551548,0.001,4139.8,4139.7,2.41563398]
[1760298553226,0.001,4139.8,4139.7,2.86953398]
[1760298553551,1.1346,4139.8,4139.7,2.86953398]
[1760298558743,1.1346,4139.8,4138.9,0.72646525]
[1760298558744,0.6336,4139.7,4138.9,0.472]
[1760298558922,0.6336,4139.7,4139.6,2.41569233]
[1760298559119,0.501,4139.8,4139.7,2.41563398]
[1760298559323,0.501,4139.8,4139.6,2.4156713]
[1760298559629,0.501,4139.8,4139.7,2.41563398]
[1760298559834,0.501,4139.8,4139.7,2.53563398]
[1760298560633,0.501,4139.8,4139.7,0.12]
[1760298560833,0.6336,4139.7,4139.4,2.4158017]
[1760298561058,0.6336,4139.5,4139.4,2.4158017]
[1760298561366,1.082,4139.5,4139.2,2.53587809]
[1760298561530,1.082,4139.5,4139.2,0.12]
[1760298561933,0.6336,4139.7,4139.2,2.53589514]
[1760298562142,0.6336,4139.7,4139.5,2.41570895]
[1760298562437,0.501,4139.8,4139.6,3.00769233]
[1760298562668,0.501,4139.8,4139.7,2.41563398]
[1760298563152,1.1346,4139.8,4139.7,2.41563398]
[1760298567287,1.1346,4139.8,4139.7,2.88763398]
[1760298568062,1.1346,4139.8,4139.7,2.41563398]
[1760298568947,1.1346,4139.8,4139.6,0.12]
[1760298569157,0.6336,4139.5,4139.1,0.12]
[1760298569450,0.6336,4139.1,4138.6,2.41627603]
[1760298569767,0.6336,4139.1,4138.5,0.1208]
[1760298569768,0.6336,4138.9,4138.5,0.1208]
[1760298569969,0.6336,4139.1,4138.5,0.1208]
[1760298570359,0.6336,4139.1,4138.9,2.41605348]
[1760298570906,0.6336,4139.1,4138.9,2.41805348]
[1760298571073,0.6336,4139.1,4138.9,0.002]
[1760298573251,0.9433,4139.8,4138.9,0.002]
[1760298573478,0.12,4139.7,4139.0,2.53684252]
[1760298573885,0.6336,4139.6,4139.0,2.53684252]
[1760298574580,0.6336,4139.6,4139.0,0.1208]
[1760298574792,0.12,4139.7,4139.0,0.1208]
[1760298574793,2.41587999,4139.3,4139.0,0.1208]
[1760298574995,2.9959,4139.2,4139.0,0.1208]
[1760298575994,2.5536,4139.1,4139.0,0.1208]
[1760298576297,0.6336,4139.0,4138.9,0.002]
[1760298578895,2.41593008,4139.2,4138.9,0.002]
[1760298578896,0.6336,4139.2,4138.9,0.002]
[1760298579900,0.6336,4139.3,4138.9,0.002]
[1760298580775,1.0759,4139.3,4138.9,0.002]
[1760298580974,0.6336,4139.3,4138.9,0.002]
[1760298581175,0.6336,4139.6,4139.0,2.53684252]
[1760298581378,3.22101661,4139.6,4139.0,0.1208]
[1760298581589,0.6336,4139.4,4139.0,0.1208]
[1760298581796,1.0759,4139.4,4139.0,0.1208]
[1760298582515,0.6336,4139.2,4138.9,0.002]
[1760298582722,2.3623,4139.3,4138.9,0.002]
[1760298583014,2.6744,4139.0,4138.9,0.002]
[1760298583611,3.1167,4139.0,4138.9,0.002]
[1760298583778,5.53274252,4139.0,4138.9,0.002]
[1760298583983,3.1167,4139.0,4138.9,0.002]
[1760298584880,5.53274252,4139.0,4138.9,0.002]
[1760298586103,3.1167,4139.0,4138.9,0.002]
[1760298586296,5.53274252,4139.0,4138.9,0.002]
[1760298586511,2.5536,4138.9,4138.5,0.002]
[1760298586872,1.1866,4138.8,4138.5,0.002]
[1760298587279,0.4322,4138.7,4138.5,0.002]
[1760298587701,0.7544,4138.8,4138.5,0.002]
[1760298587898,1.0759,4138.6,4138.5,0.002]
[1760298588112,0.6336,4138.5,4138.3,0.002]
[1760298588408,3.04997987,4138.5,4138.3,0.002]
[1760298588574,1.0759,4138.4,4138.3,0.002]
[1760298589002,3.4922928,4138.4,4138.3,0.002]
[1760298589205,5.4122928,4138.4,4138.3,0.002]
[1760298589387,2.9959,4138.4,4138.3,0.002]
[1760298592104,2.5536,4138.4,4138.3,2.41845119]
[1760298592332,1.92,4138.4,4138.3,2.41845119]
[1760298592831,2.5536,4138.4,4138.3,2.41845119]
[1760298596109,0.001,4139.6,4138.4,2.4163928]
[1760298596309,0.001,4139.6,4139.5,2.41575069]
[1760298600029,0.001,4139.6,4139.5,2.86525069]
[1760298600239,0.001,4139.6,4139.5,2.98525069]
[1760298601625,1e-08,4139.8,4139.7,2.41563398]
[1760298601835,1e-08,4139.8,4139.7,3.40522245]
[1760298602039,1e-08,4140.5,4140.4,2.41522558]
[1760298602243,0.12,4142.7,4140.2,2.41530279]
[1760298602581,0.12,4142.7,4140.7,4.33505059]
[1760298602864,0.12,4142.7,4140.7,5.06702237]
[1760298603172,0.12,4142.7,4140.7,5.51652237]
[1760298603538,0.6336,4142.6,4140.7,5.51652237]
[1760298603753,0.6336,4142.1,4140.7,5.51652237]
[1760298604577,0.6336,4142.3,4140.7,3.59652237]
[1760298604817,0.4707,4143.0,4140.7,3.59652237]
[1760298604969,1.92,4142.9,4140.7,3.59652237]
[1760298605168,0.6336,4142.6,4140.7,3.59652237]
[1760298607603,0.001,4141.7,4140.7,3.59652237]
[1760298614726,0.001,4141.7,4140.7,3.71652237]
[1760298615621,0.001,4141.7,4140.8,3.47766123]
[1760298615822,0.001,4141.7,4141.6,2.41452578]
[1760298616412,0.001,4141.7,4141.6,2.86402578]
[1760298625530,0.001,4141.7,4141.6,2.98402578]
[1760298626148,0.001,4141.7,4141.6,2.86402578]
[1760298626336,0.001,4141.7,4141.6,3.51188849]
[1760298631039,0.001,4141.7,4141.6,5.43188849]
[1760298631540,0.001,4141.7,4141.6,10.62909543]
[1760298637231,0.001,4141.7,4141.6,5.43188849]
[1760298640854,0.001,4141.7,4141.6,4.98238849]
[1760298641158,0.001,4141.7,4141.6,3.49668849]
[1760298650063,0.001,4141.7,4141.6,3.49008849]
[1760298650250,0.001,4141.7,4141.6,2.96222578]
[1760298657463,0.001,4141.7,4141.6,2.84222578]
[1760298659200,0.001,4141.7,4141.6,2.41452578]
[1760298660894,0.001,4141.7,4141.6,2.84222578]
[1760298661205,0.001,4141.7,4141.6,2.41452578]
[1760298662424,2.5536,4141.6,4141.3,0.002]
[1760298662574,2.5536,4141.6,4141.5,2.41458408]
[1760298663204,3.014,4141.6,4141.5,2.41458408]
[1760298664679,3.014,4141.6,4141.3,0.002]
[1760298664899,0.6336,4141.4,4141.3,0.002]
[1760298665306,0.6336,4141.4,4141.3,2.41670069]
[1760298666093,0.4604,4141.4,4141.3,2.41670069]
[1760298667580,1.094,4141.4,4141.3,2.41670069]
[1760298668409,0.6336,4141.4,4141.3,2.41670069]
[1760298669098,1.094,4141.4,4141.3,2.41670069]
[1760298670003,1.094,4141.4,4141.3,0.002]
[1760298670207,1.094,4141.4,4141.3,2.41670069]
[1760298670523,9.03083245,4141.4,4141.3,0.002]
[1760298672280,8.57043245,4141.4,4141.3,0.002]
[1760298672514,9.03083245,4141.4,4141.3,0.002]
[1760298675444,2.5536,4141.4,4141.3,2.41670069]
[1760298675639,0.001,4141.7,4141.4,2.41464239]
[1760298675794,0.001,4141.7,4141.6,2.41452578]
[1760298678019,0.001,4141.7,4141.6,2.53452578]
[1760298680945,0.001,4141.7,4141.6,2.41452578]
[1760298682055,0.001,4141.7,4141.6,3.4011896]
[1760298687468,0.001,4141.7,4141.6,2.9653896]
[1760298687630,0.001,4141.7,4141.6,2.41452578]
[1760298690059,0.001,4141.7,4141.6,2.85032578]
[1760298690978,0.001,4141.7,4141.6,2.97032578]
[1760298692047,0.001,4141.7,4141.6,2.53452578]
[1760298694039,2.5536,4141.6,4141.3,0.002]
[1760298694367,0.6336,4141.4,4141.3,0.002]
[1760298694558,0.6336,4141.4,4141.3,2.41670069]
[1760298694735,0.6336,4141.5,4141.3,2.41670069]
[1760298694935,0.6336,4141.5,4141.4,2.41464239]
[1760298696164,0.6346,4141.7,4141.4,2.41464239]
[1760298696359,0.6336,4141.5,4141.3,0.002]
[1760298696564,0.6336,4141.5,4141.4,2.41464239]
[1760298696768,0.6346,4141.7,4141.6,2.41452578]
[1760298697356,1.0721,4141.7,4141.6,2.41452578]
[1760298698388,1.0721,4141.7,4141.3,0.002]
[1760298698389,0.6336,4141.5,4141.3,0.002]
[1760298698763,0.4375,4141.4,4141.3,0.002]
[1760298700590,0.4375,4141.4,4141.3,2.41670069]
[1760298700790,0.001,4141.7,4141.6,2.41452578]
[1760298701173,0.4363,4141.7,4141.6,2.41452578]
[1760298701890,0.4363,4141.7,4141.3,2.53669973]
[1760298702098,2.5536,4141.5,4141.3,0.122]
[1760298702269,2.5536,4141.5,4141.4,2.41458958]
[1760298702794,2.9882,4141.5,4141.4,2.41458958]
[1760298703397,2.5536,4141.5,4141.4,2.41458958]
[1760298703775,0.001,4141.7,4141.6,2.41452578]
[1760298704467,0.4356,4141.7,4141.6,2.41452578]
[1760298705397,0.001,4141.7,4141.6,2.41452578]
[1760298705764,0.001,4141.7,4141.6,2.53452578]
[1760298706897,1.0628,4141.7,4141.6,2.53452578]
[1760298707589,2.9828,4141.7,4141.6,2.53452578]
[1760298708182,2.5546,4141.7,4141.6,2.53452578]
[1760298708613,0.6346,4141.7,4141.6,2.53452578]
[1760298713978,1.0692,4141.7,4141.6,2.53452578]
[1760298714386,0.6346,4141.7,4141.6,2.53452578]
[1760298714804,2.5536,4141.6,4141.5,2.41457709]
[1760298714971,2.986,4141.6,4141.5,2.41457709]
[1760298715178,2.986,4141.6,4141.5,2.41458408]
[1760298715815,2.986,4141.6,4141.4,2.41462307]
[1760298715983,2.5536,4141.6,4141.5,2.41458408]
[1760298716314,7.75560856,4141.6,4141.5,2.41458408]
[1760298716487,8.18800856,4141.6,4141.5,2.41458408]
[1760298719148,2.5536,4141.5,4141.4,2.41462069]
[1760298719304,2.986,4141.5,4141.4,2.41462069]
[1760298719706,2.5536,4141.5,4141.4,2.41462069]
[1760298719907,2.986,4141.5,4141.4,2.41462069]
[1760298720318,2.5536,4141.5,4141.4,2.41462069]
[1760298720507,0.001,4141.7,4141.6,2.41452578]
[1760298720907,0.001,4141.7,4141.6,2.87152578]
[1760298722240,1e-08,4142.2,4142.1,2.41423432]
[1760298722440,1e-08,4142.2,4142.1,2.62963432]
[1760298722645,1e-08,4142.2,4142.1,3.83247007]
[1760298730861,0.001,4143.1,4143.0,4.91070987]
[1760298731026,0.001,4143.1,4143.0,6.40474292]
[1760298734236,5.20200856,4145.9,4145.0,2.41254523]
[1760298734438,5.20200856,4145.9,4145.5,2.41225425]
[1760298734439,0.12,4145.6,4145.5,2.41225425]
[1760298734887,0.12,4145.9,4145.5,2.41225425]
[1760298735036,0.12,4145.9,4145.8,2.41207969]
[1760298735367,1.92,4146.0,4145.9,2.41202151]
[1760298735558,0.12,4146.2,4146.1,2.41190516]
[1760298735757,5.20200856,4146.4,4145.7,2.41209763]
[1760298735951,0.4291,4146.2,4146.1,2.41190516]
[1760298736134,1.92,4146.3,4146.2,2.41184699]
[1760298736338,2.3491,4146.3,4146.2,2.41184699]
[1760298736570,5.20200856,4146.1,4145.5,2.41223644]
[1760298736734,5.20200856,4146.1,4146.0,2.41196333]
[1760298736936,5.20200856,4146.1,4143.4,0.2115]
[1760298736937,1.92,4146.0,4143.4,0.2115]
[1760298737187,5.20200856,4144.0,4143.2,0.2115]
[1760298737467,0.6336,4143.6,4143.5,2.4134186]
[1760298737669,5.60130856,4145.2,4143.5,0.4553]
[1760298737874,0.6336,4145.0,4143.5,0.4553]
[1760298738184,0.6336,4145.0,4144.7,2.41271799]
[1760298738335,0.3993,4144.9,4144.6,2.41277569]
[1760298738540,0.6336,4144.7,4144.6,2.41277807]
[1760298738981,0.6336,4145.0,4144.9,2.41260344]
[1760298739279,1.0329,4145.0,4144.9,2.41260344]
[1760298740192,2.0685,4146.5,4144.4,2.4128945]
[1760298740406,2.0685,4146.5,4145.8,2.41207969]
[1760298740694,0.5782,4145.9,4145.8,2.41207969]
[1760298741195,1.2118,4145.9,4145.8,2.41207969]
[1760298741408,1.33298,4145.9,4145.8,2.41207969]
[1760298741554,0.12118,4145.9,4145.8,2.41207969]
[1760298741883,0.9866,4146.2,4146.1,2.41190516]
[1760298744912,0.6336,4146.1,4142.4,0.6336]
[1760298745110,0.1485,4146.5,4142.4,0.6336]
[1760298745111,0.6336,4145.9,4145.4,2.41230658]
[1760298745607,0.6336,4146.2,4145.1,0.4553]
[1760298745821,0.7536,4146.2,4145.5,0.12]
[1760298746378,0.7536,4146.2,4146.1,2.41190516]
[1760298746569,1.1066,4146.2,4146.1,2.41190516]
[1760298746902,1.23211,4146.2,4146.1,2.41190516]
[1760298749325,1.23211,4146.2,4145.5,0.12]
[1760298749625,0.6336,4145.5,4145.4,2.41231244]
[1760298749777,0.9866,4145.5,4145.4,2.41231244]
[1760298750579,0.12551,4146.2,4145.8,2.4120673]
[1760298750785,0.12,4145.8,4145.7,2.41213698]
[1760298751105,0.59927,4145.8,4145.7,2.41213698]
[1760298751305,1.23287,4145.8,4145.7,2.41213698]
[1760298751785,0.7536,4145.7,4145.6,2.41219606]
[1760298751985,1.0994,4145.7,4145.6,2.41219606]
[1760298753907,0.6336,4145.5,4144.7,0.12]
[1760298754097,0.6336,4145.3,4145.2,2.41241354]
[1760298754297,1.0994,4145.3,4144.6,2.41272247]
[1760298754499,1.0994,4145.3,4143.5,2.4134186]
[1760298754500,0.6336,4144.9,4144.4,2.41287827]
[1760298754705,1.0994,4144.8,4144.7,2.41271985]
[1760298756804,0.58774,4144.8,4144.6,2.41276264]
[1760298757008,0.4658,4144.7,4144.5,2.41283463]
[1760298757206,0.4658,4144.7,4144.6,2.41277807]
[1760298758751,1.0994,4144.7,4144.6,2.41277807]
[1760298761658,44.0731,4152.2,4144.6,2.41277807]
[1760298761659,0.214,4148.0,4144.7,2.41271985]
[1760298761946,0.214,4148.0,4144.7,0.4553]
[1760298761947,0.001,4146.0,4144.7,0.4553]
[1760298762129,0.001,4146.0,4145.9,2.41202151]
[1760298763032,0.4633,4146.0,4145.9,2.41202151]
[1760298763430,0.001,4146.0,4145.9,2.41202151]
[1760298764565,0.453,4146.0,4145.9,2.41202151]
[1760298767150,1.0866,4146.0,4145.9,2.41202151]
[1760298767584,0.6336,4145.9,4144.3,0.72753232]
[1760298767732,0.6336,4145.7,4144.4,2.72695126]
[1760298767934,0.4488,4145.6,4144.4,2.72695126]
[1760298768134,0.6336,4145.7,4145.6,2.41219606]
[1760298769745,1.0824,4145.7,4145.6,2.41219606]
[1760298770754,0.6346,4146.0,4145.9,2.41202151]
[1760298771472,0.9857,4146.0,4145.9,2.41202151]
[1760298771634,0.001,4146.0,4145.9,2.41202151]
[1760298771834,0.3521,4146.0,4145.9,2.41202151]
[1760298772058,0.001,4146.0,4145.9,2.41202151]
[1760298773243,0.3521,4146.0,4145.9,2.41202151]
[1760298773444,0.3521,4146.0,4145.9,302.41202151]
[1760298775161,0.001,4146.0,4145.9,302.41202151]
[1760298775767,0.9857,4146.0,4145.9,300.0]
[1760298777077,0.9857,4146.0,4145.9,302.41202151]
[1760298779150,0.9857,4146.0,4145.9,300.0]
[1760298779350,13.818275,4146.0,4145.9,300.0]
[1760298779959,8.351329,4146.0,4145.9,300.0]
[1760298780255,5.226539,4146.0,4145.9,300.0]
[1760298780454,2.9057,4146.0,4145.9,300.0]
[1760298780691,5.564478,4146.0,4145.9,300.0]
[1760298781389,2.9057,4146.0,4145.9,300.0]
[1760298782655,0.9857,4146.0,4145.9,300.0]
[1760298782991,0.3521,4146.0,4145.9,302.41202151]
[1760298783588,0.001,4146.0,4145.9,302.41202151]
[1760298783761,0.3521,4146.0,4145.9,302.41202151]
[1760298785792,0.6346,4146.0,4145.9,302.41202151]
[1760298785976,0.7546,4146.0,4145.9,302.41202151]
[1760298786164,1.1057,4146.0,4145.9,302.41202151]
[1760298786991,0.7546,4146.0,4145.9,302.41202151]
[1760298787184,1.1057,4146.0,4145.9,302.41202151]
[1760298788094,0.7546,4146.0,4145.9,304.40994503]
[1760298788390,0.001,4146.0,4145.9,304.99774503]
[1760298788589,0.001,4146.0,4145.9,304.87774503]
[1760298796701,0.001,4146.0,4145.9,304.40994503]
[1760298797599,0.001,4146.0,4145.9,304.87454503]
[1760298798476,0.001,4146.0,4145.9,304.99454503]
[1760298799081,0.001,4146.0,4145.9,304.52994503]
[1760298805420,0.001,4146.0,4145.9,304.99454503]
[1760298805791,0.001,4146.0,4145.9,304.52994503]
[1760298806193,0.4507,4146.0,4145.9,304.52994503]
[1760298806388,0.4507,4146.0,4145.9,304.40994503]
[1760298807606,0.001,4146.0,4145.9,304.40994503]
[1760298808801,0.001,4146.0,4145.9,304.99454503]
[1760298817027,0.4974,4147.9,4147.4,2.41110736]
[1760298817231,0.6813,4147.9,4147.8,2.41091663]
[1760298818043,0.6336,4147.8,4147.7,2.41096627]
[1760298818248,1.0833,4147.8,4147.7,2.41096627]
[1760298820836,1.0833,4147.8,4147.7,2.41097475]
[1760298823351,1.0833,4147.8,3648.7,0.33896521]
[1760298823558,6.420947,4146.7,4145.9,300.0]
[1760298823778,0.6336,4146.3,4145.9,300.0]
[1760298823968,0.4497,4146.2,4145.9,300.0]
[1760298824259,0.6336,4146.2,4146.1,2.41190516]
[1760298824716,1.0833,4146.2,4146.1,2.41190516]
[1760298824915,0.4497,4146.2,4146.1,2.41190516]
[1760298827929,1.0833,4146.2,4146.1,2.41190516]
[1760298831449,0.6336,4146.2,4146.1,2.41190516]
[1760298831655,1.0766,4146.2,4146.1,2.41190516]
[1760298832246,0.443,4146.2,4146.1,2.41190516]
[1760298838459,1.0766,4146.2,4146.1,2.41190516]